Cogmind - Beta 14 @@@ ROGUE MODE // 2024.09.21 @ 21:05:13 Player: Minty Result: Destroyed by Y-45 Defender with Heavy Assault Rifle Performance ------------- Evolutions (0) 0 Regions Visited (2) 400 Robots Destroyed (18) 90 Value Destroyed (562) 562 Prototype IDs (13) 260 Alien Tech Used (0) 0 Bonus (-102) -102 TOTAL SCORE: 1210 Bonus ------- Friendly Fire -102 Cogmind --------- Core Integrity 0/250 Matter 265/300 Energy 220/250 System Corruption 1% Temperature Cool (9) Movement Rolling (110) Ox2 Location -10/Subcaves Parts ------- > --- POWER (1) -------- Ion Engine > --- PROPULSION (2) --- Wheel Wheel > --- UTILITY (2) ------ High-capacity Storage Unit > --- WEAPON (2) ------- Subdweller Machine Gun Ripper > --- INVENTORY (20) --- Gun Armor Grenade Launcher Multitool Makeshift Sword Shrapnel Trap SUBCON Basin (Full) Peak State ------------ > --- POWER ------------ Ion Engine > --- PROPULSION ------- Wheel Wheel > --- UTILITY ---------- High-capacity Storage Unit Light Armor Plating > --- WEAPON ----------- Ripper Makeshift Sword > --- INVENTORY -------- Gun Armor Subdweller Machine Gun Grenade Launcher Multitool Shrapnel Trap SUBCON Basin [Rating: 32] Favorites ----------- Power Ion Engine Engine Ion Engine Power Core Light Nuclear Core Propulsion Wheel Leg Aluminum Leg Wheel Wheel Utility Heat Sink Device Heat Sink Storage High-capacity Storage Unit Protection Light Armor Plating Weapon Ripper Energy Gun EM Pulse Gun Ballistic Gun Light Assault Rifle Launcher Grenade Launcher Slashing Weapon Ripper Build | -11 -10 -10 ------- Run | Yrd Mat Sub Slots Evolved . | . . . Power . | . . . Propulsion . | . . . Utility . | . . . Weapon . | . . . Parts Attached 25 | . 14 11 Power 3 | . 3 . Engine 2 | . 2 . Core 1 | . 1 . Reactor . | . . . Propulsion 4 | . 3 1 Treads . | . . . Leg 1 | . 1 . Wheel 3 | . 2 1 Hover . | . . . Flight . | . . . Utility 3 | . 2 1 Device 1 | . 1 . Storage 1 | . 1 . Processor . | . . . Hackware . | . . . Protection 1 | . . 1 Artifact . | . . . Weapon 15 | . 6 9 Energy Gun 2 | . 2 . Energy Cannon . | . . . Ballistic Gun 4 | . 2 2 Ballistic Cannon . | . . . Launcher 3 | . 1 2 Special Weapon . | . . . Impact Weapon . | . . . Slashing Weapon 6 | . 1 5 Piercing Weapon . | . . . Special Melee Weapon . | . . . Unidentified Prototypes . | . . . Parts Lost 5 | . 3 2 Power 1 | . 1 . Propulsion 2 | . 1 1 Utility 1 | . . 1 Weapon 1 | . 1 . Highest Loss Streak 2 | . 2 1 To Critical Strikes . | . . . Average Slot Usage (%) 91 | . 86 96 Engine 11 | . 8 14 Core 2 | . 4 . Leg 4 | . 8 . Wheel 23 | . 18 28 Device 10 | . 9 11 Storage 14 | . 14 14 Protection 1 | . . 2 Energy Gun 2 | . 4 . Ballistic Gun 5 | . 10 . Launcher 1 | . . 3 Slashing Weapon 13 | . 6 21 Peak Build Rating 32 | 6 9 32 Average Rating 10 | 6 6 14 On Entrance 6 | 6 6 7 Naked Turns . | . . . Heaviest Build 54 | 10 49 54 Greatest Support 20 | 20 20 20 Greatest Overweight (x) 2 | . 2 2 Average Overweight (x) 1 | . . 2 Largest Inventory Capacity 20 | 8 20 20 Average Capacity 15 | 8 10 20 Most Carried 20 | 6 14 20 Average Carried 13 | 6 8 18 Final Capacity 20 | 8 20 20 Final Carried 20 | 6 15 20 Class Distribution -------------------- 100% | Mutant Dominant Class ---------------- Mutant | -10/Materials Mutant | -10/Subcaves Resources | -11 -10 -10 ----------- Run | Yrd Mat Sub Matter Collected 655 | 192 177 286 Remotely . | . . . Salvage Created 744 | . 455 289 Parts 47 | . 26 21 Haulers Intercepted 1 | . 1 . Recyclers Shooed . | . . . Parts Field Recycled . | . . . Retrieved Matter . | . . . Parts Self-Destructed . | . . . Prevented . | . . . Kills | -11 -10 -10 ------- Run | Yrd Mat Sub Combat Hostiles Destroyed 13 | . 7 6 Melee 3 | . . 3 Guns 7 | . 7 . AOE 3 | . . 3 Classes Destroyed 7 | . 5 2 Builder 2 | . 2 . Hauler 1 | . 1 . Operator 1 | . 1 . Watcher 1 | . 1 . Grunt 8 | . 7 1 Artisan 2 | . . 2 Subdweller 5 | . . 5 Best Kill Streak 4 | . 4 2 Combat Bots Only 2 | . 2 2 Max Kills in Single Turn 1 | . 1 1 Gunslinging . | . . . Exploded 1 | . . 1 Melee 1 | . . 1 Uniques/NPCs Destroyed . | . . . Combat | -11 -10 -10 -------- Run | Yrd Mat Sub Hostile Shots Fired 85 | . 68 17 Missed 26 | . 24 2 Damage Taken 897 | . 561 336 Core 257 | . 108 149 Absorbed by Shields . | . . . Core Remaining (%) 100 | 100 . . Volleys Fired 88 | . 82 6 Largest 2 | . 2 1 Hottest 40 | . 40 30 Shots Fired 103 | . 97 6 Gun 97 | . 97 . Cannon . | . . . Launcher 6 | . . 6 Special . | . . . Kinetic 31 | . 31 . Thermal 8 | . 8 . Explosive 6 | . . 6 Electromagnetic 58 | . 58 . Robot Hit Streak 7 | . 5 7 Robot Miss Streak 4 | . 4 1 Penetration Max . | . . . Secondary Targets . | . . . Shots Hit Robots 75 | . 59 16 Core Hits 32 | . 21 11 Critical Kills . | . . . Critical Parts Destroyed . | . . . Critical Strikes 1 | . 1 . Corrupt 1 | . 1 . Melee Attacks 55 | . 23 32 Impact . | . . . Slashing 55 | . 23 32 Piercing . | . . . Sneak Attacks 5 | . 2 3 Combat Hostiles . | . . . Follow-up Attacks 3 | . . 3 Damage Inflicted 1490 | . 845 645 Guns 660 | . 660 . Cannons . | . . . Explosions 221 | . 27 194 Melee 609 | . 158 451 Ramming . | . . . Kinetic 176 | . 176 . Thermal 62 | . 62 . Explosive 194 | . . 194 Electromagnetic 449 | . 449 . Impact . | . . . Slashing 609 | . 158 451 Piercing . | . . . Highest Corruption 1 | . 1 1 Average Corruption 1 | . 1 1 Corruption Purged . | . . . Corruption Blocked . | . . . Effects 10 | . 5 5 Message Errors 3 | . 2 1 Matter Fused 2 | . 2 . Heat Flow Errors 1 | . . 1 Energy Discharges 4 | . 1 3 Overload Shots . | . . . Overflow Damage 45 | . 11 34 Projectiles . | . . . Explosions 7 | . 7 . Melee 38 | . 4 34 Knockbacks . | . . . Impact . | . . . Kinetic . | . . . Secondary . | . . . Self-Inflicted Damage 60 | . . 60 Shots 2 | . . 2 Rammed . | . . . Targets Rammed . | . . . Kicked . | . . . Crushed . | . . . Highest Temperature 148 | . 148 86 Average Temperature 67 | . 67 61 Received Heat Transfer 375 | . 345 30 Siege Activations . | . . . Robots Corrupted . | . . . Combat Hostiles . | . . . Parts Fried 2 | . 2 . Impact Corruptions . | . . . Robots Melted . | . . . Combat Hostiles . | . . . Parts Melted . | . . . Heat Transferred 125 | . 125 . Parts Sabotaged . | . . . Parts Stolen . | . . . Parts Stripped . | . . . Power Chain Reactions 1 | . 1 . Alert | -11 -10 -10 ------- Run | Yrd Mat Sub Peak Influence 291 | . 291 . Initial . | . . . Average 157 | . 157 . Maximum Alert Level 1 | . 1 . Low Security (%) 69 | 100 69 . Level 1 30 | . 30 . Level 2 . | . . . Level 3 . | . . . Level 4 . | . . . Level 5 . | . . . High Security . | . . . Max Security . | . . . Squads Dispatched 5 | . 5 . Investigation 3 | . 3 . Extermination . | . . . Reinforcement 2 | . 2 . Assault . | . . . Garrison . | . . . Intercept . | . . . Searches Triggered . | . . . Construction Impeded . | . . . Haulers Reinforced . | . . . Active Scanning Responses . | . . . Cargo Convoy Interrupts . | . . . Stealth | -11 -10 -10 --------- Run | Yrd Mat Sub Distress Signals 1 | . 1 . Communications Jammed . | . . . Distress Signals . | . . . Times Spotted 25 | . 18 7 Peak Tracking Total 3 | . 3 2 Tactical Retreats . | . . . Traps | -11 -10 -10 ------- Run | Yrd Mat Sub Traps Triggered 2 | . 2 . Indirectly . | . . . Trap Hack Attempts . | . . . Triggered . | . . . Disarmed . | . . . Reprogrammed . | . . . Reused . | . . . Traps Extracted . | . . . Installed . | . . . Triggered . | . . . Most Traps Carried 1 | . . 1 Machines | -11 -10 -10 ---------- Run | Yrd Mat Sub Machines Disabled 3 | . 2 1 Max in Single Turn 1 | . 1 1 Machines Repaired . | . . . Machines Dismantled . | . . . Machines Sabotaged . | . . . Overloaded Fab Kills . | . . . Hacking | -11 -10 -10 --------- Run | Yrd Mat Sub Machines Accessed 10 | . 7 3 Terminals 6 | . 6 . Fabricators . | . . . Repair Stations . | . . . Recycling Units 1 | . 1 . Scanalyzers . | . . . Garrison Access . | . . . Total Hacks 33 | . 30 3 Successful 21 | . 18 3 Failed 12 | . 12 . Catastrophic . | . . . Database Lockouts . | . . . Manual 18 | . 18 . Terminals 29 | . 29 . Fabricators . | . . . Repair Stations . | . . . Recycling Units 1 | . 1 . Scanalyzers . | . . . Garrison Access . | . . . Terminal Hacks 18 | . 15 3 Robot Analysis 3 | . 3 . Prototype ID Bank 1 | . 1 . Open Door 1 | . . 1 Emergency Access Points 1 | . 1 . Terminal Index 1 | . 1 . Alert Level 2 | . 2 . Locate Traps 2 | . 2 . Dispatch Records 1 | . 1 . Recall Investigation 1 | . 1 . Recall Reinforcements 2 | . 2 . Zone Layout 1 | . 1 . Derelict Proto ID Bank 1 | . . 1 Release Object 1 | . . 1 Fabricator Hacks . | . . . Repair Station Hacks . | . . . Recycling Unit Hacks 1 | . 1 . Report Inventory 1 | . 1 . Scanalyzer . | . . . Garrison Access Hacks . | . . . Unauthorized Hacks 2 | . 2 . Terminals 2 | . 2 . Botnet 2 | . 2 . Fabricators . | . . . Repair Stations . | . . . Recycling Units . | . . . Scanalyzers . | . . . Garrison Access . | . . . Data Cores Recovered . | . . . Used . | . . . Hacking Detections 6 | . 6 . Full Trace Events 2 | . 2 . Feedback Events . | . . . Feedback Blocked . | . . . Robot Schematics Acquired . | . . . Robots Built . | . . . Authchips . | . . . Time . | . . . Total Robot Build Rating . | . . . Part Schematics Acquired . | . . . Parts Built . | . . . Authchips . | . . . Time . | . . . Total Part Build Rating . | . . . Parts Repaired . | . . . Time . | . . . Parts Recycled . | . . . Recycled Matter . | . . . Retrieved Matter . | . . . Retrieved Components . | . . . Parts Scanalyzed . | . . . Part Schematics Acquired . | . . . Parts Damaged . | . . . Bothacking | -11 -10 -10 ------------ Run | Yrd Mat Sub Used RIF Installer . | . . . Robots Hacked . | . . . Non-combat . | . . . Combat . | . . . Robot Hacks Applied . | . . . Relay Couplers Released . | . . . Fabnet Peak Effective % . | . . . Robots Rewired . | . . . Allies Hacked . | . . . Hacks Repelled . | . . . Allies | -11 -10 -10 -------- Run | Yrd Mat Sub Total Allies . | . . . Largest Group . | . . . Highest-Rated Group . | . . . Highest-Rated Ally . | . . . Total Orders . | . . . Ally Attacks . | . . . Total Damage . | . . . Kills . | . . . Allies Corrupted . | . . . Allies Melted . | . . . Intel | -11 -10 -10 ------- Run | Yrd Mat Sub Robot Analysis Total 3 | . 3 . Derelict Logs Recovered 1 | . . 1 Drone Launches . | . . . Drone Recoveries . | . . . Exploration | -11 -10 -10 ------------- Run | Yrd Mat Sub Turns Passed 1452 | 2 734 716 Spaces Moved 934 | 2 420 512 Core . | . . . Treads . | . . . Legs 91 | 2 89 . Wheels 843 | . 331 512 Hover . | . . . Flight . | . . . Fastest Speed 80 | 120 80 110 Average Speed 104 | 120 97 110 Slowest Speed 190 | 120 190 110 Overloaded Moves . | . . . Propulsion Burnouts . | . . . Robots Hopped . | . . . Cave-ins Triggered . | . . . Exploration Rate (%) 36 | 1 75 32 Regions Visited 2 Branch Regions 1 Pre-discovered Areas . | . . . Known Exits Taken . | . . . Unknown Exits Taken 2 | 1 1 . Scrap Searched 3 | . . 3 Spaces Dug 19 | . 9 10 Terrain Destroyed 53 | . 11 42 Melee 19 | . 9 10 Projectile . | . . . AOE 34 | . 2 32 Terrain Rammed . | . . . Walls Destroyed . | . . . Machines Disabled . | . . . Actions | -11 -10 -10 --------- Run | Yrd Mat Sub Total 1233 | 1 611 621 Wait 83 | . 53 30 Move 932 | 1 419 512 Hop . | . . . Pick Up 24 | . 11 13 Fast Attach 3 | . 3 . Attach 6 | . 4 2 Detach 4 | . 4 . Swap 16 | . 7 9 Drop 25 | . 5 20 Fire 88 | . 82 6 Melee 52 | . 23 29 Ram . | . . . Kick . | . . . Crush . | . . . Escape Stasis . | . . . Rewire . | . . . Trap . | . . . Miscellaneous . | . . . Route ------- -11/Scrapyard -10/Materials (discovered 4 exits: [*Mat x3] / *Sub) -10/Subcaves History --------- Turn | Location | Event 1 | -11/Scrapyard | Discovered new exit (range 1) 3 | -11/Scrapyard | Entered Materials 322 | -10/Materials | Build established: Mutant 396 | -10/Materials | Discovered new exit (range 15) 609 | -10/Materials | Discovered new exit (range 9) 670 | -10/Materials | Discovered new exit (range 14) 731 | -10/Materials | Discovered new exit (range 3) 737 | -10/Materials | Entered Subcaves 741 | -10/Subcaves | Learned location of 1 exit from Materials 796 | -10/Subcaves | A swath of the cavern ceiling suddenly collapsed 860 | -10/Subcaves | Visited 4L-MR0's lab 906 | -10/Subcaves | Found Gun Armor 984 | -10/Subcaves | Core integrity fell below 50% 1037 | -10/Subcaves | Shifting Twisted Machinery released Barrage Gun 1041 | -10/Subcaves | Shifting Twisted Machinery released Sub. Power Source 1409 | -10/Subcaves | Found SUBCON Basin 1450 | -10/Subcaves | Core integrity fell below 20% 1453 | -10/Subcaves | Destroyed by Y-45 Defender with Heavy Assault Rifle Last Messages --------------- 01387_ Dropped Sensor Array. 01388_ Dropped ECM Suite. 01388_ Dropped Sml. Laser. 01389_ Dropped Lgt. Assault Rifle. 01390_ Dropped Sub. Monowheel. 01391_ Dropped Sub. Power Source. 01392_ Acquired Hcp. Storage Unit. 01398_ Dropped Hcp. Storage Unit. 01403_ Connecting with UFD SUBCON Station... >>Open Door Sealed Heavy Doors opened. 01409_ Connecting with SUBCON Basin Controls... >>Release Inventory Accessing inventory controls... Collection purity confirmed 100%... Ejecting SUBCON Basin... Delivery behind schedule, handle with care! 01409_ Acquired SUBCON Basin. 01449_ G-34 Mercenary destroyed. 01450_ Lgt. Armor Plating destroyed. Map ----- +----------------------------------------------------+ | ?????????????????????????????????????????????????? | | ?????????????????????????????????????????????????? | | ?????????????????????????????????????????????????? | | ?????????????????????????????????????????????????? | | ?????????????????????????????????????????????????? | | ?????????????????????????????????????????????????? | | ?????????????????????????????????????????????????? | | ?????????????????????????????????????????????????? | | ????????????########?????????????????????????????? | | ????????????#""""""#?????????????????????????????? | | ????????????#""""X"#?????????????????????????????? | | ????????????# "#?????????????????????????????? | | ????????????# "#?????????????????????????????? | | ????????????#" """"#?????????????????????????????? | | ????????????## #####?????????????????????????????? | | ????????????#"*""#???????????????????????????????? | | ???????????##X!!!##??????????????????????????????? | | ???????????#!"*!![##?????????????????????????????? | | #??????????#[####= #?????????????????????????????? | | ###?#?###??#[## *###????????????????????????????? | | ""#"#"# ###= ### #????????????????????????????? | | """"""" ! ##???????????????????????????? | | """"" #######?????????????????????? | | #"" ### ## ##????????? #?????????? | | # "####?## #??????? ### ??????? | | " ###### =& ### @ #????? ??????? | | "## ## &%& ### #?# #?? ?????? | | "## & ## # #???????? | | ### #### ## =%Y #????????? | | #### ### ###??# ## #????????? | | #?# #???? #????????? | | ## #????# ## # ### #????????? | | #### ##????# ##?####??? ##????????? | | ###?? ##?????## ###??????????????????????? | | ####???#####???????#####?????????????????????????? | | ?????????????????????????????????????????????????? | | ?????????????????????????????????????????????????? | | ?????????????????????????????????????????????????? | | ?????????????????????????????????????????????????? | | ?????????????????????????????????????????????????? | | ?????????????????????????????????????????????????? | | ?????????????????????????????????????????????????? | | ?????????????????????????????????????????????????? | | ?????????????????????????????????????????????????? | | ?????????????????????????????????????????????????? | | ?????????????????????????????????????????????????? | | ?????????????????????????????????????????????????? | | ?????????????????????????????????????????????????? | | ?????????????????????????????????????????????????? | | | +----------------------------------------------------+ Best States ------------- Heat Dissipation 35 Energy Generation 14 Energy Capacity 250 Matter Stores 300 Matter Capacity 300 Sight Range 16 Terrain Scan Density 10 Armor Coverage 150 Evasion (%) 55 Item Schematics ----------------- None Robot Schematics ------------------ None Fabricated ------------ Nothing Alien Tech Used ----------------- None Achievements -------------- None Challenges ------------ None Game ------ Seed GammaGammaShredder Manual? 0 Play Time 00:13:30 Cumulative 942.0 hours Start 2024.09.21 @ 20:52:05 End 2024.09.21 @ 21:05:13 Sessions 1 Manual Loads 0 Difficulty Rogue Special Mode None Game No. 1147 Rogue 867 Adventurer 124 Explorer 156 Win Type - Total 41 Types 28/0/8/3/1/0/0/1/0 Lore% 82 Gallery% 90 Achievement% 78 Wizard Run 0 Options --------- Layout 0 ASCII 0 Keyboard 1 Movement Numpad Keybinds 0 Fullscreen 2 Font 18/X11 Map View 76x50 Zoom Use 0% Tactical HUD 1 Map Filters NONE Filters NONE Steam 1 RUN: a85283d7-41c2-48ad-8155-4e3a7553d074